Cogmind - Beta 11.1 @@@ ROGUE MODE // 2022.05.08 @ 14:10:08 Player: Zeldest Result: Destroyed by G-34 Mercenary with Small Laser Performance ------------- Evolutions (1) 500 Regions Visited (2) 400 Robots Destroyed (13) 65 Value Destroyed (139) 139 Prototype IDs (2) 40 Alien Tech Used (0) 0 Bonus (0) 0 TOTAL SCORE: 1144 Bonus ------- None Cogmind --------- Core Integrity 0/400 Matter 234/300 Energy 100/100 System Corruption 6% Temperature Cool (6) Movement Core (700) Ox13 Location -9/Materials Parts ------- > --- POWER (1) -------- (None) > --- PROPULSION (2) --- (None) > --- UTILITY (3) ------ High-capacity Storage Unit > --- WEAPON (3) ------- (None) > --- INVENTORY (20) --- Light Treads Transport Network Coupler Improved EM Shotgun Medium Laser Beam Rifle Assault Rifle Welding Torch Peak State ------------ > --- POWER ------------ Ion Engine > --- PROPULSION ------- Light Treads Light Treads > --- UTILITY ---------- High-capacity Storage Unit Terrain Scanner Terrain Scan Processor > --- WEAPON ----------- Beam Cannon Beam Cannon Improved Assault Rifle > --- INVENTORY -------- Light Treads Transport Network Coupler Improved EM Shotgun Medium Laser Beam Rifle Assault Rifle Grenade Launcher Welding Torch [Rating: 13] Favorites ----------- Power Ion Engine Engine Ion Engine Propulsion Light Treads Treads Light Treads Utility Terrain Scanner Device Terrain Scanner Storage High-capacity Storage Unit Processor Terrain Scan Processor Weapon Beam Cannon Energy Gun Medium Laser Energy Cannon Beam Cannon Ballistic Gun Assault Rifle Launcher Grenade Launcher Build | -11 -10 -9 ------- Run | Scr Mat Mat Slots Evolved 2 | . . 2 Power . | . . . Propulsion . | . . . Utility 1 | . . 1 Weapon 1 | . . 1 Parts Attached 18 | 6 5 7 Power 1 | 1 . . Engine 1 | 1 . . Core . | . . . Reactor . | . . . Propulsion 2 | 2 . . Treads 2 | 2 . . Leg . | . . . Wheel . | . . . Hover . | . . . Flight . | . . . Utility 5 | 1 3 1 Device 1 | . 1 . Storage 3 | 1 2 . Processor 1 | . . 1 Hackware . | . . . Protection . | . . . Artifact . | . . . Weapon 10 | 2 2 6 Energy Gun 5 | 1 . 4 Energy Cannon 2 | . 2 . Ballistic Gun 2 | 1 . 1 Ballistic Cannon . | . . . Launcher 1 | . . 1 Special Weapon . | . . . Impact Weapon . | . . . Slashing Weapon . | . . . Piercing Weapon . | . . . Special Melee Weapon . | . . . Unidentified Prototypes 2 | . . 2 Parts Lost 9 | . . 9 Power 1 | . . 1 Propulsion 2 | . . 2 Utility 2 | . . 2 Weapon 4 | . . 4 Highest Loss Streak 8 | . . 8 To Critical Strikes . | . . . Average Slot Usage (%) 85 | . 95 79 Engine 11 | . 14 9 Treads 21 | . 28 17 Device 8 | . 9 7 Storage 12 | . 14 11 Processor 3 | . . 6 Energy Gun 4 | . 2 5 Energy Cannon 20 | . 22 18 Ballistic Gun 2 | . 2 2 Naked Turns . | . . . Heaviest Build 55 | 14 52 55 Greatest Support 40 | 40 40 40 Greatest Overweight (x) 15 | . 1 15 Average Overweight (x) . | . . 2 Largest Inventory Capacity 20 | 8 20 20 Average Capacity 15 | 6 12 20 Most Carried 8 | 4 6 8 Average Carried 4 | 1 4 6 Final Capacity 20 | 8 20 20 Final Carried 7 | 3 6 7 Class Distribution -------------------- 67% | Mutant 32% | Skirmisher Dominant Class ---------------- Mutant | -10/Materials Skirmisher | -9/Materials Resources | -11 -10 -9 ----------- Run | Scr Mat Mat Matter Collected 366 | 242 48 76 Remotely . | . . . Salvage Created 282 | . 83 199 Parts 32 | . 8 24 Haulers Intercepted 3 | . 1 2 Recyclers Shooed . | . . . Parts Field Recycled . | . . . Retrieved Matter . | . . . Parts Self-Destructed . | . . . Prevented . | . . . Kills | -11 -10 -9 ------- Run | Scr Mat Mat Combat Hostiles Destroyed 6 | . . 6 Guns 1 | . . 1 Cannons 2 | . . 2 AOE 3 | . . 3 Classes Destroyed 6 | . 3 3 Worker 1 | . 1 . Builder 1 | . . 1 Hauler 3 | . 1 2 Watcher 2 | . 1 1 Swarmer 5 | . . 5 Sentry 1 | . . 1 Best Kill Streak 6 | . 2 6 Combat Bots Only 5 | . . 5 Max Kills in Single Turn 2 | . 1 2 Gunslinging . | . . . Exploded 1 | . . 1 Melee . | . . . Uniques/NPCs Destroyed . | . . . Combat | -11 -10 -9 -------- Run | Scr Mat Mat Damage Taken 1299 | . 20 1279 Core 431 | . 20 411 Absorbed by Shields . | . . . Core Remaining (%) 96 | 100 92 . Volleys Fired 22 | . 4 18 Largest 3 | . 2 3 Hottest 176 | . 120 176 Shots Fired 55 | . 8 47 Gun 7 | . . 7 Cannon 40 | . 8 32 Launcher 8 | . . 8 Special . | . . . Kinetic 2 | . . 2 Thermal 41 | . 8 33 Explosive 8 | . . 8 Electromagnetic 4 | . . 4 Robot Hit Streak 6 | . 2 6 Robot Miss Streak 3 | . 2 3 Penetration Max . | . . . Secondary Targets . | . . . Shots Hit Robots 16 | . 3 13 Core Hits 16 | . 3 13 Critical Kills . | . . . Critical Parts Destroyed . | . . . Critical Strikes . | . . . Melee Attacks . | . . . Impact . | . . . Slashing . | . . . Piercing . | . . . Sneak Attacks . | . . . Combat Hostiles . | . . . Follow-up Attacks . | . . . Damage Inflicted 573 | . 53 520 Guns 36 | . . 36 Cannons 248 | . 53 195 Explosions 285 | . . 285 Melee . | . . . Ramming 4 | . . 4 Kinetic 14 | . . 14 Thermal 283 | . 53 230 Explosive 250 | . . 250 Electromagnetic 22 | . . 22 Impact . | . . . Slashing . | . . . Piercing . | . . . Highest Corruption 6 | . . 6 Average Corruption 6 | . . 6 Corruption Purged . | . . . Corruption Blocked . | . . . Effects 3 | . . 3 Message Errors 1 | . . 1 Heat Flow Errors 2 | . . 2 Overload Shots . | . . . Overflow Damage 36 | . . 36 Projectiles . | . . . Explosions 36 | . . 36 Melee . | . . . Knockbacks . | . . . Impact . | . . . Kinetic . | . . . Secondary . | . . . Self-Inflicted Damage 24 | . . 24 Shots 2 | . . 2 Rammed 2 | . . 2 Targets Rammed 2 | . . 2 Kicked . | . . . Crushed . | . . . Highest Temperature 545 | . 120 545 Average Temperature 170 | . 46 193 Received Heat Transfer 156 | . . 156 Effects 5 | . . 5 Shutdowns 1 | . . 1 Interference 3 | . . 3 Damage (minor) 1 | . . 1 Siege Activations . | . . . Robots Corrupted . | . . . Combat Hostiles . | . . . Parts Fried . | . . . Impact Corruptions . | . . . Robots Melted . | . . . Combat Hostiles . | . . . Parts Melted 1 | . . 1 Heat Transferred 568 | . 111 457 Parts Sabotaged . | . . . Parts Stolen . | . . . Parts Stripped . | . . . Power Chain Reactions 1 | . . 1 Missiles Intercepted . | . . . Alert | -11 -10 -9 ------- Run | Scr Mat Mat Peak Influence 283 | . 19 283 Initial 7 | . . 7 Average 61 | . 10 112 Maximum Alert Level 1 | . . 1 Low Security (%) 87 | 100 100 75 Level 1 12 | . . 24 Level 2 . | . . . Level 3 . | . . . Level 4 . | . . . Level 5 . | . . . High Security . | . . . Max Security . | . . . Squads Dispatched 1 | . . 1 Investigation . | . . . Extermination . | . . . Reinforcement 1 | . . 1 Assault . | . . . Garrison . | . . . Intercept . | . . . Searches Triggered . | . . . Construction Impeded . | . . . Haulers Reinforced . | . . . Active Scanning Responses . | . . . Cargo Convoy Interrupts . | . . . Stealth | -11 -10 -9 --------- Run | Scr Mat Mat Distress Signals . | . . . Communications Jammed . | . . . Distress Signals . | . . . Times Spotted 15 | . 1 14 Peak Tracking Total 6 | . 1 6 Tactical Retreats 1 | . . 1 Traps | -11 -10 -9 ------- Run | Scr Mat Mat Traps Triggered 1 | . 1 . Indirectly . | . . . Trap Hack Attempts . | . . . Triggered . | . . . Disarmed . | . . . Reprogrammed . | . . . Reused . | . . . Traps Extracted . | . . . Installed . | . . . Triggered . | . . . Machines | -11 -10 -9 ---------- Run | Scr Mat Mat Machines Disabled . | . . . Max in Single Turn . | . . . Machines Sabotaged . | . . . Garrisons Compromised . | . . . Overloaded Fab Kills . | . . . Hacking | -11 -10 -9 --------- Run | Scr Mat Mat Machines Accessed . | . . . Terminals . | . . . Fabricators . | . . . Repair Stations . | . . . Recycling Units . | . . . Scanalyzers . | . . . Garrison Access . | . . . Total Hacks . | . . . Successful . | . . . Failed . | . . . Catastrophic . | . . . Database Lockouts . | . . . Manual . | . . . Terminals . | . . . Fabricators . | . . . Repair Stations . | . . . Recycling Units . | . . . Scanalyzers . | . . . Garrison Access . | . . . Terminal Hacks . | . . . Fabricator Hacks . | . . . Repair Station Hacks . | . . . Recycling Unit Hacks . | . . . Scanalyzer . | . . . Garrison Access Hacks . | . . . Unauthorized Hacks . | . . . Terminals . | . . . Fabricators . | . . . Repair Stations . | . . . Recycling Units . | . . . Scanalyzers . | . . . Garrison Access . | . . . Data Cores Recovered . | . . . Used . | . . . Hacking Detections . | . . . Full Trace Events . | . . . Feedback Events . | . . . Feedback Blocked . | . . . Robot Schematics Acquired . | . . . Robots Built . | . . . Authchips . | . . . Time . | . . . Total Robot Build Rating . | . . . Part Schematics Acquired . | . . . Parts Built . | . . . Authchips . | . . . Time . | . . . Total Part Build Rating . | . . . Parts Repaired . | . . . Time . | . . . Parts Recycled . | . . . Recycled Matter . | . . . Retrieved Matter . | . . . Retrieved Components . | . . . Parts Scanalyzed . | . . . Part Schematics Acquired . | . . . Parts Damaged . | . . . Bothacking | -11 -10 -9 ------------ Run | Scr Mat Mat Used RIF Installer . | . . . Robots Hacked . | . . . Non-combat . | . . . Combat . | . . . Robot Hacks Applied . | . . . Relay Couplers Released . | . . . Fabnet Peak Effective % . | . . . Robots Rewired . | . . . Allies Hacked . | . . . Hacks Repelled . | . . . Allies | -11 -10 -9 -------- Run | Scr Mat Mat Total Allies . | . . . Largest Group . | . . . Highest-Rated Group . | . . . Highest-Rated Ally . | . . . Total Orders . | . . . Ally Attacks . | . . . Total Damage . | . . . Kills . | . . . Allies Corrupted . | . . . Allies Melted . | . . . Intel | -11 -10 -9 ------- Run | Scr Mat Mat Robot Analysis Total . | . . . Derelict Logs Recovered . | . . . Drone Launches . | . . . Drone Recoveries . | . . . Exploration | -11 -10 -9 ------------- Run | Scr Mat Mat Turns Passed 750 | 94 273 383 Spaces Moved 303 | 59 138 106 Core 22 | 13 . 9 Treads 281 | 46 138 97 Legs . | . . . Wheels . | . . . Hover . | . . . Flight . | . . . Fastest Speed 50 | 50 160 240 Average Speed 206 | 135 178 281 Slowest Speed 800 | 160 240 800 Overloaded Moves . | . . . Propulsion Burnouts . | . . . Robots Hopped . | . . . Cave-ins Triggered 1 | . . 1 Exploration Rate (%) 19 | 3 36 18 Regions Visited 2 Branch Regions . Pre-discovered Areas . | . . . Known Exits Taken . | . . . Unknown Exits Taken 2 | 1 1 . Scrap Searched . | . . . Spaces Dug 6 | . . 6 Terrain Destroyed 51 | . . 51 Melee . | . . . Projectile . | . . . AOE 51 | . . 51 Terrain Rammed . | . . . Walls Destroyed . | . . . Machines Disabled . | . . . Actions | -11 -10 -9 --------- Run | Scr Mat Mat Total 378 | 73 160 145 Wait . | . . . Move 301 | 58 137 106 Hop . | . . . Pick Up 23 | 9 8 6 Fast Attach . | . . . Attach 17 | 6 3 8 Detach 5 | . 2 3 Swap 2 | . 2 . Drop 6 | . 4 2 Fire 22 | . 4 18 Melee . | . . . Ram 2 | . . 2 Kick . | . . . Crush . | . . . Escape Stasis . | . . . Rewire . | . . . Trap . | . . . Miscellaneous . | . . . Route ------- -11/Scrapyard -10/Materials -9/Materials History --------- Turn | Location | Event 7 | -11/Scrapyard | Discovered new exit (range 16) 95 | -11/Scrapyard | Entered Materials 296 | -10/Materials | Discovered new exit (range 10) 310 | -10/Materials | Build established: Mutant 368 | -10/Materials | Entered another Materials area 368 | -9/Materials | Evolved 2 slots: Utility x1, Weapon x1 671 | -9/Materials | Crushed by falling debris 692 | -9/Materials | Core integrity fell below 50% 711 | -9/Materials | Core integrity fell below 20% 732 | -9/Materials | Lost 8 parts (1p2n2u3w) 751 | -9/Materials | Destroyed by G-34 Mercenary with Small Laser Last Messages --------------- 00671_ Lgt. Treads destroyed. 00671_ System corrupted by crushing effect (+2). 00671_ U-05 Engineer builds a Wall. 00672_ The unstable cave ceiling collapses. 00672_ K-01 Serf collects debris. 00673_ Slammed into K-01 Serf. 00675_ U-05 Engineer lays Concrete. 00679_ System corrupted: Heat flow error (+290). 00679_ U-05 Engineer lays Concrete. 00679_ U-05 Engineer builds a Wall. 00682_ Power failure, Ion Engine shutdown. 00682_ Overheating: Hcp. Storage Unit damaged (-152). 00692_ U-05 Engineer builds a Wall. 00695_ System corrupted: Heat flow error (+199). 00699_ Beam Cannon destroyed. 00701_ Ion Engine destroyed. 00713_ Z%MBSJEXSWOYXT|UAVS7L3EN 00720_ S-10 Pest destroyed. 00747_ Slammed into G-34 Mercenary. 00749_ K-01 Serf collects debris. Map ----- +----------------------------------------------------+ | ?????????????????????????????????????????????????? | | ?????????????????????????????????????????????????? | | ?????????????????????????????????????????????????? | | ?????????????????????????????????????????????????? | | ?????????????????????????????????????????????????? | | ?????????????????????????????????????????????????? | | ?????????????????????????????????????????????????? | | ?????????????????????????????????????????????????? | | ?????????????????????????????????????????????????? | | ?????????????????????????????????????????????????? | | ?????????????????????????????????????????????????? | | ?????????????????????????????????????????????????? | | ?????????????????????????????????????????????????? | | ?????????????????????????????????????????????????? | | ?????????????????????????????????? ????????????? | | ?????????????????????????????????? #???????????? | | ?????????????????????????????????? %=###?????????? | | ????????????????????????????? ???? [%#???????????? | | ?????????????????????????????? ??? #?##????????? | | ???????????????????????????? ? ??? #???????????? | | ??????????????????????#????????#?# #???#???????? | | ??????????????????????#"?"???????# #??????? ???? | | ??????????????????????#"???? ? #?# #???????? ??? | | ??????????????????????+ o????????# ##???#??? ??? | | ?????????????????????###/######### #???#???????? | | ?????????????????????# g@ # ##?##??#?#??? | | ?????????????????????# g T # #####???????? | | ?????????????????????# """ # ####????? | | ?????????????????????# """ # #???#??? | | ?????????????????????# """ g # [ #?????#? | | ????????????????? ? ?+ a =#*[ ##??????? | | ????????????? ???????# t* #[ #?#????? | | ????????????? ?#############k###%[ # ##??#???? | | ???????????#?# ??#???#?????# %= #* ## #???#?#?? | | ?????????????# ??## ? # #??????? | | ???????? ?? # ###???? ? # T %! #???#?? | | ???????????? / + ?? # = #""?"??? | | ????????? ???# #?? ? ??# ##### ##?? ???? | | ?????#???? ??# ############+#### #???????? | | ????#?#?? ? ?# T + ### ?????? | | #?#?###?##??## # #?? ^ ????? | | ????#??#?#???# # "" ### ^ ???? | | ???#####?#?#?# + "" """ #??##### ??? | | ?###?##???#### [==##### "T """ #??#??#?####??? | | ###??##?###?## [==###?# "" """ #???? ????????? | | ##?#?###?##?## == #?### "" # ????????????? | | ????#####?##?# #?### # ???? ???????? | | ????#?####?### ##############??????????????? | | #########?#### #?#?###?# ?????? ???????????? | | ######??# #?##?#?##???????????????????? | +----------------------------------------------------+ Best States ------------- Heat Dissipation 28 Energy Generation 10 Energy Capacity 250 Matter Stores 300 Matter Capacity 300 Sight Range 16 Terrain Scan Range 14 Terrain Scan Density 85 Evasion (%) 40 Recoil Reduction 2 Item Schematics ----------------- None Robot Schematics ------------------ None Fabricated ------------ Nothing Alien Tech Used ----------------- None Achievements -------------- Unlikely Earthworm Challenges ------------ None Game ------ Seed ActuatorDecoyDoomcannon Manual? 0 Play Time 00:09:10 Cumulative 17.6 hours Start 2022.05.08 @ 14:00:42 End 2022.05.08 @ 14:10:08 Sessions 1 Manual Loads 0 Difficulty Rogue Special Mode None Game No. 39 Rogue 39 Adventurer 0 Explorer 0 Win Type - Total 0 Types 0/0/0/0/0/0/0/0/0 Lore% 19 Gallery% 22 Achievement% 17 Wizard Run 0 Options --------- ASCII 0 Keyboard 1 Movement Numpad Keybinds 0 Fullscreen 1 Font 18/SmallcapsGlow Map View 76x50 Tactical HUD 1 Map Filters NONE Filters NONE Steam 1 RUN: fab0122e-e107-40b3-882e-2ab2e8611ded